bitfinex/quotes_ETHUSD_20250801
["timestamp","ask_amount","ask_price","bid_price","bid_amount"]
[1754066035850,0.25738521,3617.8,3616.3,3.2235453]
[1754066035851,2.76431446,3617.6,3617.0,0.1384]
[1754066036045,8.14505135,3617.5,3616.8,2.76480066]
[1754066036347,0.82448521,3617.4,3616.9,3.0]
[1754066036659,0.82448521,3617.4,3616.8,2.90320066]
[1754066036660,1.16618521,3617.3,3616.8,0.1384]
[1754066036949,0.25738521,3617.2,3616.8,3.1384]
[1754066037156,0.25738521,3617.1,3616.7,0.1384]
[1754066037316,0.25738521,3617.0,3616.7,0.1384]
[1754066037527,4.69538521,3616.9,3616.7,0.1384]
[1754066037718,4.69538521,3616.9,3616.2,2.76528444]
[1754066037719,0.68608521,3616.8,3616.2,2.76528444]
[1754066038041,0.25738521,3616.7,3616.6,2.90342792]
[1754066039248,1.16618521,3616.7,3615.9,0.4583]
[1754066039448,0.25738521,3616.6,3616.3,0.1384]
[1754066039756,0.25738521,3616.6,3616.2,2.76526232]
[1754066039757,0.68608521,3616.5,3616.2,2.76526232]
[1754066039916,0.25738521,3616.4,3616.2,2.76528473]
[1754066040112,0.25765866,3616.3,3616.0,3.0]
[1754066040453,0.25765866,3616.2,3616.1,4.23221024]
[1754066040951,0.25765866,3616.2,3616.1,4.37061024]
[1754066041249,0.25765866,3616.2,3616.1,7.37061024]
[1754066042012,0.1384,3617.5,3617.4,2.76441643]
[1754066042243,4.434,3618.1,3618.0,2.76388308]
[1754066042515,4.434,3618.1,3617.5,0.55]
[1754066042714,4.434,3618.1,3617.8,0.1384]
[1754066042911,4.434,3618.1,3618.0,2.76395798]
[1754066043117,4.434,3618.1,3617.8,0.1384]
[1754066043346,4.434,3618.1,3617.8,2.90250433]
[1754066043559,4.8627,3618.1,3617.9,2.76402888]
[1754066043741,4.8627,3618.1,3617.8,2.90245673]
[1754066043929,4.8627,3618.1,3617.9,2.76402811]
[1754066044127,4.434,3618.1,3618.0,2.76395798]
[1754066045522,4.434,3618.1,3617.9,2.76400672]
[1754066046042,4.434,3618.1,3617.8,0.1384]
[1754066046228,4.434,3618.1,3618.0,2.76395798]
[1754066047263,4.434,3618.1,3617.9,2.76400699]
[1754066047775,4.434,3618.1,3618.0,2.76395798]
[1754066048083,0.001,3618.4,3618.3,2.76372882]
[1754066048224,0.001,3618.4,3618.3,10.31733136]
[1754066048428,0.001,3618.4,3618.3,11.23413136]
[1754066049263,0.001,3618.4,3618.3,10.77563136]
[1754066050472,0.4297,3618.4,3618.0,0.002]
[1754066050758,5.65112214,3618.3,3618.0,0.002]
[1754066051125,4.423,3618.3,3618.0,0.002]
[1754066051330,4.423,3618.3,3618.2,2.7638052]
[1754066051525,0.001,3618.4,3618.3,2.76372882]
[1754066051746,0.001,3618.4,3618.3,3.77202882]
[1754066052071,0.001,3618.4,3618.3,4.23052882]
[1754066052285,0.001,3618.4,3618.3,7.93016832]
[1754066053627,0.001,3618.4,3618.3,6.77202882]
[1754066053858,0.001,3618.4,3618.3,7.23052882]
[1754066054158,0.001,3618.4,3618.3,6.77202882]
[1754066054359,0.001,3618.4,3618.3,6.31372882]
[1754066055954,0.001,3618.4,3618.3,6.77702882]
[1754066058191,0.001,3618.4,3618.3,6.91542882]
[1754066058691,0.001,3618.4,3618.3,6.45212882]
[1754066058891,0.001,3618.4,3618.3,6.91542882]
[1754066059252,0.001,3619.5,3619.3,2.76294802]
[1754066059253,4.407,3619.5,3619.3,2.76294802]
[1754066059458,0.25777779,3619.4,3619.3,2.76296521]
[1754066059970,0.25777779,3619.4,3619.2,2.76300979]
[1754066060196,0.25777779,3619.4,3619.3,2.76296521]
[1754066060697,4.407,3619.5,3618.9,0.4633]
[1754066060698,4.407,3619.5,3619.4,2.76288887]
[1754066061004,5.13818701,3619.5,3619.3,2.76295474]
[1754066061158,4.8805,3619.5,3619.3,2.76295474]
[1754066061363,4.8805,3619.5,3619.3,2.76293327]
[1754066061578,4.8805,3619.5,3618.9,0.4633]
[1754066061579,1.21375223,3619.4,3618.9,2.76322132]
[1754066061778,0.2576702,3619.3,3618.8,2.76330065]
[1754066061982,1.21377036,3619.2,3618.8,2.76330065]
[1754066062164,0.9561,3619.2,3618.8,2.76331465]
[1754066062493,0.9561,3619.1,3618.7,2.76341141]
[1754066062675,5.3591,3619.0,3618.7,2.76341141]
[1754066062881,0.4735,3618.9,3618.3,3.0]
[1754066063059,0.4735,3618.9,3618.5,2.76350272]
[1754066063261,0.4826,3618.8,3618.0,2.76589907]
[1754066063492,1.00941,3618.7,3618.3,2.76367357]
[1754066063788,1.00941,3618.7,3618.4,2.76364347]
[1754066063789,0.9561,3618.6,3618.4,2.76364347]
[1754066064009,4.8755,3618.5,3618.0,0.002]
[1754066064167,0.257742,3618.4,3618.0,0.002]
[1754066064367,3.97750717,3618.4,3618.0,0.002]
[1754066064568,2.76388159,3618.1,3618.0,0.002]
[1754066064781,3.02165954,3618.1,3618.0,0.002]
[1754066065093,3.97775954,3618.1,3618.0,0.002]
[1754066065302,0.73127795,3618.1,3618.0,0.002]
[1754066065506,0.4735,3618.1,3618.0,0.002]
[1754066065675,4.12749222,3618.1,3618.0,0.002]
[1754066066407,4.38526003,3618.1,3618.0,0.002]
[1754066066604,1.62137844,3618.1,3618.0,0.002]
[1754066066807,4.38526003,3618.1,3618.0,0.002]
[1754066067205,1.13877844,3618.1,3618.0,0.002]
[1754066067503,8.78734886,3618.1,3618.0,0.002]
[1754066068814,11.78734886,3618.1,3618.0,1e-08]
[1754066069373,11.92645395,3618.1,3618.0,1e-08]
[1754066069606,11.92574886,3618.1,3618.0,1e-08]
[1754066069905,18.94574886,3618.1,3618.0,1e-08]
[1754066070097,2.76465331,3617.1,3616.5,2.7650559]
[1754066070304,4.79425664,3617.0,3616.5,2.7650559]
[1754066070606,10.19139222,3618.1,3616.9,2.76479858]
[1754066070607,3.0,3618.0,3616.9,2.76479858]
[1754066070809,0.1384,3617.2,3616.8,3.22814855]
[1754066070973,4.65511894,3617.1,3616.8,3.22815729]
[1754066071176,0.25811894,3617.0,3616.9,3.22808495]
[1754066071505,0.25811894,3617.0,3616.8,3.22974627]
[1754066071670,4.397,3617.1,3616.8,3.22974627]
[1754066071873,4.397,3617.1,3616.8,0.4633]
[1754066072591,4.397,3617.1,3616.8,2.76487502]
[1754066072905,4.397,3617.1,3616.8,0.4633]
[1754066073283,5.60049427,3617.1,3616.7,0.1384]
[1754066073478,0.25796564,3617.0,3616.6,2.9033741]
[1754066073812,0.25796564,3617.0,3616.6,3.3666741]
[1754066074316,0.25796564,3617.0,3616.6,0.6017]
[1754066074525,0.25796564,3617.0,3616.8,2.76486527]
[1754066074690,0.25796564,3617.0,3616.7,3.22823933]
[1754066074897,0.25796564,3617.0,3616.7,0.4633]
[1754066075284,0.25796564,3617.0,3616.8,0.4633]
[1754066075581,0.25796564,3617.0,3616.9,3.22809858]
[1754066075781,0.25796564,3617.0,3616.9,0.4633]
[1754066076083,0.25796564,3617.0,3616.6,2.90338312]
[1754066076390,0.25796564,3617.0,3616.7,0.4633]
[1754066076640,0.25796564,3617.0,3616.6,2.90338312]
[1754066076808,4.5354,3617.1,3616.6,2.90338312]
[1754066077005,4.5354,3617.1,3616.7,2.76494209]
[1754066077204,0.25768927,3617.0,3616.8,2.76487344]
[1754066077400,4.397,3617.1,3617.0,2.76472214]
[1754066077601,4.65465245,3617.1,3617.0,3.22802214]
[1754066077916,0.4735,3618.5,3617.1,0.55]
[1754066078104,4.6426012,3618.0,3617.0,0.82567324]
[1754066078301,5.5987012,3617.9,3616.7,0.55]
[1754066078529,2.76475571,3617.0,3616.3,2.7652573]
[1754066078840,4.386,3616.9,3616.6,0.1384]
[1754066079028,4.386,3616.9,3616.6,2.90342408]
[1754066079232,4.386,3616.9,3616.2,0.4653]
[1754066079233,4.386,3616.8,3616.7,0.4649]
[1754066079433,4.386,3616.8,3616.7,3.69315147]
[1754066079748,4.386,3616.8,3616.7,4.38155147]
[1754066079910,0.1384,3617.5,3616.9,2.7647426]
[1754066080253,4.64252194,3617.4,3617.0,0.4633]
[1754066080466,0.25752194,3617.3,3617.0,3.22800239]
[1754066080621,0.25752194,3617.3,3617.0,3.36640239]
[1754066080818,0.25752194,3617.3,3617.0,0.6017]
[1754066081470,0.25752194,3617.3,3617.0,0.1384]
[1754066081753,0.1384,3617.1,3616.6,0.1384]
[1754066082052,4.383,3617.0,3616.6,0.1384]
[1754066082242,4.383,3617.0,3616.6,0.6017]
[1754066082420,4.383,3617.0,3616.7,3.22823612]
[1754066082616,4.383,3617.0,3616.7,0.4633]
[1754066082871,4.383,3617.0,3616.9,2.76479858]
[1754066083173,4.381,3617.0,3616.9,3.83139858]
[1754066083521,0.4735,3617.9,3617.0,0.55]
[1754066083726,0.1384,3617.7,3617.0,0.55]
[1754066084035,3.02172691,3617.6,3617.2,0.1384]
[1754066084358,0.25744159,3617.5,3617.2,0.1384]
[1754066084550,4.8545,3617.4,3617.2,0.1384]
[1754066084735,0.25747128,3617.3,3616.9,2.90314498]
[1754066084919,0.25747128,3617.3,3616.9,3.36644498]
[1754066085123,0.25747128,3617.3,3617.2,2.76456928]
[1754066085350,0.1384,3617.9,3617.4,2.76441643]
[1754066085544,4.97608798,3617.8,3617.4,2.76441643]
[1754066085762,0.2575009,3617.7,3617.4,3.39004899]
[1754066085922,7.02,3618.3,3617.6,2.7642636]
[1754066085923,2.76379622,3618.3,3617.6,2.7642636]
[1754066086120,0.1384,3618.1,3617.6,2.9026636]
[1754066086348,4.63749791,3618.0,3617.7,0.4873]
[1754066086564,4.63749791,3618.0,3616.7,5.76492838]
[1754066086565,0.25749791,3617.9,3616.7,5.76492838]
[1754066086758,0.1384,3617.7,3617.2,2.76456928]
[1754066086959,4.63649791,3617.6,3617.2,3.25186928]
[1754066087160,0.1384,3617.7,3617.4,2.76441643]
[1754066087161,0.25749791,3617.5,3617.4,2.76441643]
[1754066087459,4.383,3617.6,3617.5,2.76434001]
[1754066087664,4.64060199,3617.6,3617.5,3.71994001]
[1754066087866,4.64060199,3617.6,3617.5,3.85834001]
[1754066088066,4.63960199,3617.6,3617.5,4.40834001]
[1754066088732,4.63960199,3617.6,3617.5,0.1384]
[1754066088927,4.63960199,3617.6,3617.3,0.4873]
[1754066089163,0.25760199,3617.5,3617.3,0.6257]
[1754066089551,3.02203473,3617.4,3616.5,0.4683]
[1754066089753,0.1384,3617.2,3616.6,0.1384]
[1754066090072,2.76501556,3616.7,3616.5,0.1384]
[1754066090274,0.1384,3616.5,3616.2,0.002]
[1754066090572,2.90350438,3616.5,3616.2,0.002]
[1754066090932,4.81995086,3616.5,3616.2,0.002]
[1754066091373,5.07820088,3616.5,3616.2,0.002]
[1754066092371,9.46220088,3616.5,3616.2,0.002]
[1754066096958,8.97990088,3616.5,3616.2,0.002]
[1754066097290,4.77665002,3616.5,3616.2,0.4893]
[1754066097460,8.4532544,3616.5,3616.2,0.002]
[1754066098189,4.77365002,3616.5,3616.2,0.4893]
[1754066098864,4.77365002,3616.5,3616.2,0.002]
[1754066099066,0.39665002,3616.5,3616.2,0.002]
[1754066099277,4.77365002,3616.5,3616.2,0.002]
[1754066099452,8.29261627,3616.5,3616.2,0.002]
[1754066099656,8.72181627,3616.5,3616.2,0.002]
[1754066100170,1.15051189,3616.5,3616.2,0.002]
[1754066100366,4.63425002,3616.5,3616.4,0.4893]
[1754066100601,7.3993544,3616.5,3616.4,0.002]
[1754066100822,0.25825002,3616.5,3616.4,0.4893]
[1754066101101,4.63425002,3616.5,3616.4,0.4893]
[1754066101614,0.25825002,3616.5,3616.4,0.4893]
[1754066101808,0.25825002,3616.5,3616.4,13.66896198]
[1754066102009,6.644,3617.2,3617.1,2.76464571]
[1754066102307,4.63656339,3617.2,3617.1,3.85864571]
[1754066102658,0.25856339,3617.2,3617.1,4.40864571]
[1754066102909,0.25856339,3617.2,3617.1,7.40864571]
[1754066103103,0.001,3618.0,3617.4,3.31441643]
[1754066103104,4.377,3617.5,3617.4,3.31441643]
[1754066103416,0.001,3618.0,3617.9,2.76403438]
[1754066103570,0.001,3618.0,3617.9,12.59945586]
[1754066103774,0.001,3618.0,3617.9,16.66581552]
[1754066104011,0.25942274,3618.0,3617.9,16.66581552]
[1754066104475,0.001,3618.0,3617.9,16.66581552]
[1754066105985,0.001,3618.0,3617.9,7.40803438]
[1754066108006,4.375,3618.0,3617.9,0.1384]
[1754066108414,4.375,3618.0,3617.9,2.90243438]
[1754066108988,4.375,3618.0,3617.9,0.1384]
[1754066109297,4.375,3618.0,3617.3,0.4873]
[1754066109509,4.375,3618.0,3617.9,2.76403438]
[1754066109510,0.001,3618.0,3617.9,2.76403438]
[1754066109676,4.376,3618.0,3617.9,3.25133438]
[1754066109879,0.001,3618.0,3617.9,4.26963438]
[1754066110073,0.001,3618.0,3617.9,16.52741552]
[1754066110883,0.001,3618.0,3617.9,7.26963438]
[1754066111079,0.001,3618.0,3617.9,16.52741552]
[1754066111281,0.001,3618.0,3617.9,6.80133438]
[1754066111492,0.001,3618.0,3617.9,3.0]
[1754066111899,0.001,3618.0,3617.7,2.76418616]
[1754066112218,0.001,3618.0,3617.6,3.0]
[1754066112417,0.001,3618.0,3617.5,2.76433805]
[1754066112615,0.001,3618.0,3617.6,3.0]
[1754066112916,1.03989786,3618.0,3617.5,3.0]
[1754066113094,0.4292,3617.9,3617.5,3.0]
[1754066113292,0.4292,3617.9,3617.5,2.76432991]
[1754066113495,0.001,3618.0,3617.5,2.76432991]
[1754066113812,2.76497332,3618.0,3617.4,2.76439426]
[1754066114146,0.001,3618.0,3617.4,2.76439426]
[1754066114315,0.001,3618.0,3617.6,2.76425721]
[1754066114624,0.001,3618.0,3617.5,2.76431111]
[1754066114781,0.001,3618.0,3617.6,2.76425124]
[1754066115217,0.001,3618.0,3617.3,0.55]
[1754066115518,0.001,3618.0,3617.9,2.76403438]
[1754066115684,4.373,3618.0,3617.9,2.76403438]
[1754066115886,4.373,3618.0,3617.9,3.24143438]
[1754066116085,4.373,3618.0,3617.9,0.4774]
[1754066116281,4.373,3618.0,3617.5,0.552]
[1754066116478,4.373,3618.0,3617.5,0.002]
[1754066116918,4.373,3618.0,3617.6,2.76421327]
[1754066117418,4.373,3618.0,3617.5,2.76632235]
[1754066117715,4.8341,3618.0,3617.5,2.76632235]
[1754066117937,4.8341,3618.0,3617.5,0.002]
[1754066118117,7.66831528,3618.0,3617.5,0.002]
[1754066118429,0.4611,3617.9,3617.5,0.002]
[1754066119131,4.373,3618.0,3617.5,0.002]
[1754066119341,0.1384,3617.8,3617.5,0.002]
[1754066119507,4.373,3618.0,3617.5,2.76627036]
[1754066119707,4.373,3618.0,3617.6,2.76423397]
[1754066119708,5.31907821,3618.0,3617.6,2.76423397]
[1754066120328,5.31907821,3618.0,3617.5,0.002]
[1754066120329,2.76403438,3617.9,3617.5,0.002]
[1754066120543,2.76412419,3617.8,3617.5,0.002]
[1754066120723,3.22522419,3617.8,3617.5,0.002]
[1754066121667,5.31907821,3618.0,3617.5,2.76633478]
[1754066121668,4.5114,3618.0,3617.5,2.76633478]
[1754066121800,4.5114,3618.0,3617.6,2.76425283]
[1754066122002,4.373,3618.0,3617.6,2.7642636]
[1754066122338,0.001,3618.0,3617.9,0.1384]
[1754066122499,8.06998069,3617.9,3617.5,0.002]
[1754066122699,2.7642636,3617.6,3617.5,0.002]
[1754066122904,0.2575136,3617.6,3617.5,0.002]
[1754066123140,0.25751013,3617.7,3617.5,0.002]
[1754066123340,1.03598281,3617.6,3617.5,0.002]
[1754066123512,4.05775654,3617.6,3617.5,0.002]
[1754066123705,1.29349294,3617.6,3617.5,0.002]
[1754066123906,0.25751013,3617.6,3617.5,0.002]
[1754066124113,0.25753056,3617.6,3617.5,0.002]
[1754066124459,7.13008048,3617.9,3617.5,0.002]
[1754066124755,0.25755842,3617.8,3617.7,2.76418719]
[1754066124962,0.25755842,3617.8,3617.5,0.002]
[1754066125108,0.46245584,3617.7,3617.5,0.002]
[1754066125306,0.92355584,3617.7,3617.5,0.002]
[1754066125508,0.001,3618.0,3617.5,0.002]
[1754066125708,4.365,3617.9,3617.5,0.4794]
[1754066125909,4.365,3617.8,3617.7,2.76418719]
[1754066126144,4.365,3617.8,3617.7,3.24158719]
[1754066126342,4.62271228,3617.8,3617.7,3.24158719]
[1754066126547,4.365,3617.8,3617.7,3.24158719]
[1754066126707,4.365,3617.8,3617.7,3.68918719]
[1754066126905,0.001,3618.0,3617.9,2.76403438]
[1754066127123,4.365,3618.0,3617.9,2.76403438]
[1754066127341,4.365,3618.0,3617.9,3.24143438]
[1754066128023,4.365,3618.0,3617.8,2.7640856]
[1754066128404,4.365,3618.0,3617.5,3.31631072]
[1754066128608,0.2580246,3617.9,3617.6,2.76423466]
[1754066129022,0.2580246,3617.9,3617.5,3.31631518]
[1754066129217,0.2580246,3617.9,3617.5,0.002]
[1754066129644,0.2580246,3617.8,3617.5,2.76632194]
[1754066129810,0.7193066,3617.7,3617.5,0.002]
[1754066130008,7.38349882,3617.6,3617.5,0.002]
[1754066130211,8.32339882,3617.6,3617.5,0.002]
[1754066131358,2.76456928,3617.2,3617.1,0.002]
[1754066131555,7.3868045,3617.2,3617.1,0.002]
[1754066131712,8.95702315,3617.2,3617.1,0.002]
[1754066131914,0.25823522,3617.2,3617.1,0.4794]
[1754066132246,4.62023522,3617.2,3617.1,0.002]
[1754066133054,4.62023522,3617.2,3617.1,2.76664571]
[1754066133357,4.62223522,3617.2,3617.1,3.24404571]
[1754066133656,4.62223522,3617.2,3617.1,0.4794]
[1754066133856,4.62223522,3617.2,3617.1,0.002]
[1754066135473,4.62223522,3617.2,3617.1,3.24404571]
[1754066135654,4.62223522,3617.2,3617.1,0.4794]
[1754066135841,4.62223522,3617.2,3617.1,3.24404571]
[1754066136362,4.62223522,3617.2,3617.1,0.4794]
[1754066136528,4.62223522,3617.2,3617.1,3.24404571]
[1754066136724,4.62223522,3617.2,3617.1,0.002]
[1754066136928,4.62223522,3617.2,3617.1,3.24404571]
[1754066137126,0.25823522,3617.2,3617.1,3.24404571]
[1754066137437,4.61523522,3617.2,3617.1,0.002]
[1754066137758,5.35344422,3617.2,3617.1,0.002]
[1754066137964,4.61547815,3617.2,3617.1,0.002]
[1754066139861,8.31994743,3617.2,3617.1,0.002]
[1754066140064,8.45834743,3617.2,3617.1,0.002]
[1754066140985,4.61247815,3617.2,3617.1,0.002]
[1754066141428,0.25847815,3617.2,3617.1,0.002]
[1754066141624,4.61247815,3617.2,3617.1,0.4794]
[1754066142063,4.61247815,3617.2,3617.1,0.002]
[1754066142361,9.05463546,3617.2,3617.1,0.002]
[1754066142567,9.19303546,3617.2,3617.1,0.002]
[1754066143866,8.93455894,3617.2,3617.1,0.002]
[1754066144170,9.19308543,3617.2,3617.1,0.002]
[1754066146868,2.76510438,3616.5,3616.4,0.002]
[1754066147072,7.51603087,3616.5,3616.4,0.002]
[1754066147233,8.42223087,3616.5,3616.4,0.002]
[1754066147754,7.95923087,3616.5,3616.4,0.002]
[1754066148130,7.51603087,3616.5,3616.4,0.002]
[1754066148333,4.75192649,3616.5,3616.4,0.002]
[1754066148576,7.51703087,3616.5,3616.4,0.4532]
[1754066148763,7.51703087,3616.5,3616.4,0.002]
[1754066150164,7.5169261,3616.5,3616.4,0.002]
[1754066150669,4.61342172,3616.5,3616.4,0.8847]
[1754066150866,0.25842172,3616.5,3616.4,0.8847]
[1754066151074,4.61342172,3616.5,3616.4,4.19988084]
[1754066151368,0.25842172,3616.5,3616.4,5.0351955]
[1754066151567,4.61342172,3616.5,3616.4,8.0351955]
[1754066153797,4.355,3616.5,3616.4,8.0351955]
[1754066154106,4.61339415,3616.5,3616.4,8.0351955]
[1754066154315,0.1384,3617.5,3616.8,0.55]
[1754066154499,4.61338369,3617.4,3617.3,0.1384]
[1754066154701,0.25838369,3617.4,3617.3,0.1384]
[1754066154924,4.61338369,3617.4,3617.3,13.59167917]
[1754066155129,4.61338369,3617.4,3617.3,16.59167917]
[1754066155515,0.25838369,3617.4,3617.3,16.59167917]
[1754066155721,4.354,3617.6,3617.5,0.55]
[1754066156044,4.354,3617.6,3617.5,3.45274001]
[1754066156045,4.61233933,3617.6,3617.5,3.45274001]
[1754066156541,4.61233933,3617.6,3617.5,4.33544001]
[1754066156716,4.354,3617.6,3617.5,4.33544001]
[1754066160250,0.001,3617.9,3617.8,3.31411078]
[1754066160453,0.001,3617.9,3617.8,12.5978382]
[1754066160631,0.001,3617.9,3617.8,16.0213971]
[1754066160833,0.001,3617.9,3617.8,16.5912971]
[1754066161354,4.354,3618.4,3618.1,0.55]
[1754066161652,0.001,3618.4,3618.3,15.56981514]
[1754066161854,0.001,3618.4,3618.3,16.45251514]
[1754066162050,4.353,3619.2,3619.1,2.7631179]
[1754066162255,4.61102935,3619.2,3619.1,3.3131179]
[1754066162558,0.25802935,3619.2,3619.1,4.3342179]
[1754066162713,0.25802935,3619.2,3619.1,4.1958179]
[1754066162914,0.25802935,3619.2,3619.1,4.3342179]
[1754066163326,0.001,3619.5,3619.4,0.55]
[1754066163646,0.001,3619.5,3619.4,12.59660407]
[1754066163847,0.001,3619.5,3619.4,16.45167519]
[1754066164006,0.001,3619.5,3619.4,16.59007519]
[1754066164846,0.001,3619.9,3619.7,2.76265988]
[1754066165052,0.001,3619.9,3619.7,6.31265988]
[1754066165348,0.001,3619.9,3619.7,7.54386367]
[1754066166455,0.001,3619.9,3619.7,5.90105988]
[1754066166957,0.001,3619.9,3619.7,2.90105988]
[1754066167123,0.9072,3619.8,3619.7,0.1384]
[1754066167323,0.4442,3619.8,3619.7,0.1384]
[1754066167641,3.66978356,3619.8,3618.9,2.76324416]
[1754066167965,0.001,3619.8,3618.9,0.4512]
[1754066168129,0.001,3619.8,3619.5,0.1384]
[1754066168325,4.351,3619.7,3619.5,0.1384]
[1754066168766,0.4432,3619.6,3619.5,0.1384]
[1754066169442,0.9062,3619.6,3618.8,2.76334158]
[1754066169748,2.76286672,3619.5,3619.1,0.1384]
[1754066169919,2.76289056,3619.4,3619.1,0.1384]
[1754066170255,3.66909937,3619.4,3619.1,0.1384]
[1754066170439,0.4432,3619.4,3619.1,0.1384]
[1754066170644,4.4894,3619.7,3619.2,2.76303968]
[1754066170849,0.4432,3619.6,3619.2,2.76301216]
[1754066171174,0.001,3619.8,3618.7,3.0]
[1754066171330,0.001,3619.8,3619.4,0.1384]
[1754066171331,4.351,3619.5,3619.4,0.1384]
[1754066171974,4.351,3619.5,3619.4,2.90128887]
[1754066172133,0.001,3619.8,3619.5,0.55]
[1754066172474,4.35,3619.7,3619.4,0.1384]
[1754066172625,4.35,3619.7,3619.5,2.76279965]
[1754066172829,4.35,3619.7,3619.6,0.1384]
[1754066173262,4.35,3619.7,3619.6,2.90113621]
[1754066173471,0.001,3619.8,3619.6,2.90113621]
[1754066173677,4.35,3619.7,3619.6,0.1384]
[1754066173821,4.35,3619.7,3619.6,2.90113236]
[1754066174297,4.35,3619.7,3619.6,0.1384]
[1754066175131,4.35,3619.7,3619.1,9.25608632]
[1754066175132,8.45405988,3619.7,3619.1,2.76307333]
[1754066175367,8.45405988,3619.7,3619.3,0.1384]
[1754066175539,3.69626147,3619.6,3619.3,0.1384]
[1754066175746,0.9335,3619.6,3619.3,0.1384]
[1754066175927,0.4552,3619.5,3619.3,0.1384]
[1754066176135,0.4552,3619.4,3618.9,2.76325495]
[1754066176448,5.2835,3619.3,3619.1,0.1384]
[1754066176649,4.8052,3619.3,3619.1,0.1384]
[1754066177063,0.4552,3619.2,3619.1,0.1384]
[1754066178076,3.69654155,3619.2,3619.1,0.1384]
[1754066178280,5.03397523,3619.2,3619.1,0.1384]
[1754066178777,2.76340847,3618.8,3618.3,0.1384]
[1754066178983,4.35,3618.7,3618.3,0.1384]
[1754066179287,5.2835,3618.7,3618.3,0.1384]
[1754066179468,4.8052,3618.7,3618.4,2.76363539]
[1754066179669,4.8052,3618.7,3618.3,0.1384]
[1754066179872,0.4552,3619.4,3618.6,0.55]
[1754066180184,0.4552,3619.4,3619.0,2.76318569]
[1754066180185,4.6068466,3619.3,3619.0,2.76318569]
[1754066180387,0.2568466,3619.2,3619.0,2.76318569]
[1754066180557,0.2568466,3619.2,3619.1,2.7631179]
[1754066180757,0.2568466,3619.2,3618.9,0.1384]
[1754066181164,0.7120466,3619.2,3618.9,0.1384]
[1754066181384,0.2568466,3619.1,3618.9,0.1384]
[1754066181750,0.7120466,3619.1,3618.9,0.1384]
[1754066182081,1.3287466,3619.0,3618.4,0.1404]
[1754066182286,4.6058466,3618.9,3618.4,0.1404]
[1754066182487,0.7120466,3618.8,3618.4,2.90403953]
[1754066182688,0.2568466,3618.7,3618.5,2.76357212]
[1754066182891,0.2568466,3618.6,3618.5,2.76357212]
[1754066183089,0.25750216,3618.7,3618.6,2.76349969]
[1754066183395,4.60650134,3618.7,3618.6,2.76349969]
[1754066183757,4.60650134,3618.7,3618.5,2.76354793]
[1754066184094,0.25750134,3618.6,3618.5,2.76354793]
[1754066184489,0.25750134,3618.6,3618.5,3.69004793]
[1754066184862,4.60750134,3618.6,3618.5,3.69004793]
[1754066185063,4.60750134,3618.6,3618.5,3.23674793]
[1754066186195,4.60750134,3618.6,3618.5,3.69004793]
[1754066186496,4.60750134,3618.6,3618.5,3.23674793]
[1754066187466,4.60750134,3618.6,3618.5,2.76354793]
[1754066188099,4.60750134,3618.6,3618.4,0.1404]
[1754066188299,0.25812132,3618.5,3618.4,0.002]
[1754066189661,0.25812132,3618.5,3618.4,1.0252]
[1754066189907,4.60712132,3618.5,3618.4,3.92725244]
[1754066190694,4.60712132,3618.5,3618.4,1.1636]
[1754066190897,4.60712132,3618.5,3618.4,0.6904]
[1754066191199,4.60712132,3618.5,3618.4,3.45405244]
[1754066192097,4.60712132,3618.5,3618.4,0.002]
[1754066192412,8.95113951,3618.5,3618.4,0.002]
[1754066194212,8.44259738,3618.5,3618.4,0.002]
[1754066194773,2.76388159,3618.1,3618.0,0.002]
[1754066195109,7.50840291,3618.1,3618.0,0.002]
[1754066195313,8.44190291,3618.1,3618.0,0.002]
[1754066195610,3.16040291,3618.1,3618.0,0.002]
[1754066195817,9.03432275,3618.1,3618.0,0.002]
[1754066199392,0.39652132,3618.1,3618.0,0.002]
[1754066199701,7.50940291,3618.1,3618.0,0.002]
[1754066199878,7.96460291,3618.1,3618.0,0.002]
[1754066200310,5.20072132,3618.1,3618.0,0.002]
[1754066200513,7.50940291,3618.1,3618.0,0.002]
[1754066200715,7.92679529,3618.1,3618.0,0.002]
[1754066202218,5.1629137,3618.1,3618.0,0.002]
[1754066202403,0.39652132,3618.1,3618.0,0.002]
[1754066202582,0.39652132,3618.1,3618.0,0.9285]
[1754066202780,4.74552132,3618.1,3618.0,3.69245798]
[1754066203002,4.60712132,3618.1,3618.0,3.69245798]
[1754066203208,4.60712132,3618.1,3618.0,4.38085798]
[1754066203404,0.25812132,3618.1,3618.0,4.38085798]
[1754066203618,0.001,3619.2,3618.3,2.76367965]
[1754066203803,2.76335526,3618.8,3618.4,0.4732]
[1754066204005,0.001,3619.2,3618.2,0.4533]
[1754066204006,2.76373634,3618.3,3618.2,0.1384]
[1754066204342,2.76373634,3618.3,3618.0,0.002]
[1754066204343,2.76385548,3618.2,3618.0,0.002]
[1754066204521,3.02185265,3618.1,3618.0,0.002]
[1754066204682,4.09375265,3618.1,3618.0,0.002]
[1754066205119,8.44175265,3618.1,3618.0,0.002]
[1754066205281,7.96345265,3618.1,3618.0,0.002]
[1754066205487,9.06381476,3618.1,3618.0,0.002]
[1754066205823,9.52111476,3618.1,3618.0,0.002]
[1754066206322,4.60597106,3618.1,3618.0,0.486]
[1754066206486,4.74437106,3618.1,3618.0,0.486]
[1754066207022,4.74437106,3618.1,3618.0,0.002]
[1754066208128,7.50825265,3618.1,3618.0,0.002]
[1754066209633,8.41445265,3618.1,3618.0,0.002]
[1754066209822,9.53228081,3618.1,3618.0,0.002]
[1754066210396,2.76439812,3617.5,3617.1,0.002]
[1754066210600,4.60597106,3617.4,3617.1,0.002]
[1754066210835,2.76456928,3617.2,3617.1,0.002]
[1754066211022,7.37054034,3617.2,3617.1,0.002]
[1754066211409,8.83293785,3617.2,3617.1,0.002]
[1754066211737,8.38403785,3617.2,3617.1,0.002]